OrganisationNameLabel,OrganisationURI,EffectiveDate,Directorate/ServiceWhereExpenditureIncurred,ServiceCategoryLabel,ServiceCategoryURI,Supplier,SupplierRegisteredCompany Number,PaymentDate,TransactionNumber,NetAmount,IrrecoverableVAT,PurposeOfSpend,ProcurementClassification:ProclassLabel,ProcrementClassification:ProClassCode
South Lakeland District Council,http://opendatacommunities.org/id/district-council/south-lakeland,31/02/2014,Business Support Community Services,SLDC as Agent,,DISCLOSURE AND BARRING SERVICE,,41990,45086,264,0,DBS checks for taxi drivers,Legal Services,280000
South Lakeland District Council,http://opendatacommunities.org/id/district-council/south-lakeland,31/02/2014,ICT Group,Central Services,http://opendatacommunities.org/def/concept/finance/sercop/objective/102,MIDLAND SOFTWARE LTD,1852206,41974,45205,1393.5,0,2 days Consultancy Fee for installation,Information Communication Technology,270000
South Lakeland District Council,http://opendatacommunities.org/id/district-council/south-lakeland,31/02/2014,Business Support Community Services,Internal Trading Accounts,,DENNIS EAGLE LTD,3794455,41976,45230,268.76,0,Link rod,Vehicle Management,380000
South Lakeland District Council,http://opendatacommunities.org/id/district-council/south-lakeland,31/02/2014,Business Support Community Services,Internal Trading Accounts,,DENNIS EAGLE LTD,3794455,41976,45312,463.4,0,Link rod,Vehicle Management,380000
South Lakeland District Council,http://opendatacommunities.org/id/district-council/south-lakeland,31/02/2014,Business Support Community Services,Internal Trading Accounts,,DENNIS EAGLE LTD,3794455,41976,45313,537.52,0,Link rod,Vehicle Management,380000
South Lakeland District Council,http://opendatacommunities.org/id/district-council/south-lakeland,31/02/2014,Kendal Town Hall,Cultural Environmental Regulatory & Planning Services,http://opendatacommunities.org/def/concept/finance/sercop/objective/104,THE CATERING PARTNERSHIP,3150517,41974,45386,275.3,0,Call out to check the operation of the,Furniture & Soft Furnishings,210000
South Lakeland District Council,http://opendatacommunities.org/id/district-council/south-lakeland,31/02/2014,Development Management,Cultural Environmental Regulatory & Planning Services,http://opendatacommunities.org/def/concept/finance/sercop/objective/104,SALFORD CITY COUNCIL,,41976,45400,375.06,0,Check of Building Regulation,"Works - Construction, Repair & Maintenance",390000
South Lakeland District Council,http://opendatacommunities.org/id/district-council/south-lakeland,31/02/2014,Business Support Community Services,Internal Trading Accounts,,ARCO LIMITED,133804,41981,45404,269.67,0,eez wipes,Clothing,140000
South Lakeland District Council,http://opendatacommunities.org/id/district-council/south-lakeland,31/02/2014,Human Resources,Central Services,http://opendatacommunities.org/def/concept/finance/sercop/objective/102,OH Acquisitions Ltd,7365943,41974,45473,345,0,Fit for work OHP assessment      @,Healthcare,310000
South Lakeland District Council,http://opendatacommunities.org/id/district-council/south-lakeland,31/02/2014,Development Implementation,Central Services,http://opendatacommunities.org/def/concept/finance/sercop/objective/102,R G PARKINS & PARTNERS LTD,4107150,41983,45501,250,0,Structural survey.,"Works - Construction, Repair & Maintenance",390000
South Lakeland District Council,http://opendatacommunities.org/id/district-council/south-lakeland,31/02/2014,Technical Team,Cultural Environmental Regulatory & Planning Services,http://opendatacommunities.org/def/concept/finance/sercop/objective/104,Matchtech,2526418,41974,45534,781.2,0,TO SUPPLY  CONTRACT 16,Consultancy,150000
South Lakeland District Council,http://opendatacommunities.org/id/district-council/south-lakeland,31/02/2014,Business Support Community Services,Internal Trading Accounts,,BRIAN ARMISTEAD LTD T/A SINKFALL RECYCLI,4133280,41976,45535,886,0,Green waste tipping - April (estimated),Environmental Services,180000
South Lakeland District Council,http://opendatacommunities.org/id/district-council/south-lakeland,31/02/2014,Revenues and Benefits,SLDC as Agent,,ROYAL MAIL GROUP PLC,,41974,45548,1218.52,0,2014-15  Postal Charges a/c 0198123013,Financial Services,200000
South Lakeland District Council,http://opendatacommunities.org/id/district-council/south-lakeland,31/02/2014,Revenues and Benefits,Highways & Transport Services,http://opendatacommunities.org/def/concept/finance/sercop/objective/107,LOOMIS UK LTD,3200432,41974,45549,914.6,0,2014 - 2015,Consultancy,150000
South Lakeland District Council,http://opendatacommunities.org/id/district-council/south-lakeland,31/02/2014,Printing Section,Central Services,http://opendatacommunities.org/def/concept/finance/sercop/objective/102,SUPPLIES TEAM,5510758,41981,45551,271.12,0,HP LaserJet Ink for Cllr's printers,Stationery,340000
South Lakeland District Council,http://opendatacommunities.org/id/district-council/south-lakeland,31/02/2014,Revenues and Benefits,Central Services,http://opendatacommunities.org/def/concept/finance/sercop/objective/102,PITNEY BOWES LTD,182037,41974,45552,455,0,2014-15 Stationery & office supplies,Stationery,340000
South Lakeland District Council,http://opendatacommunities.org/id/district-council/south-lakeland,31/02/2014,Electoral Services,Central Services,http://opendatacommunities.org/def/concept/finance/sercop/objective/102,Access Point Ltd,3310479,41983,45553,439,0,Shared with Cumbria Authorities 10 Weeks,Mail Services,300000
South Lakeland District Council,http://opendatacommunities.org/id/district-council/south-lakeland,31/02/2014,Development Strategy,Cultural Environmental Regulatory & Planning Services,http://opendatacommunities.org/def/concept/finance/sercop/objective/104,KENDAL COLLEGE,,41976,45555,865,0,Room hire and catering for SLDC's Green,Arts & Leisure Services,290000
South Lakeland District Council,http://opendatacommunities.org/id/district-council/south-lakeland,31/02/2014,Policy & Partnerships,Cultural Environmental Regulatory & Planning Services,http://opendatacommunities.org/def/concept/finance/sercop/objective/104,KENDAL TOWN COUNCIL,,41988,45556,514,0,An unsightly planter at the top of,Financial Services,200000
South Lakeland District Council,http://opendatacommunities.org/id/district-council/south-lakeland,31/02/2014,Social Enterprise Admin,Central Services,http://opendatacommunities.org/def/concept/finance/sercop/objective/102,ADECCO UK LIMITED,593232,41981,45557,530.21,0,To supply for period,Consultancy,150000
South Lakeland District Council,http://opendatacommunities.org/id/district-council/south-lakeland,31/02/2014,Customer Services,Central Services,http://opendatacommunities.org/def/concept/finance/sercop/objective/102,B & B Cleasby,,41974,45560,308.5,0,1 x paduli short sleeved blouse,Clothing,140000
South Lakeland District Council,http://opendatacommunities.org/id/district-council/south-lakeland,31/02/2014,Coronation Hall,Cultural Environmental Regulatory & Planning Services,http://opendatacommunities.org/def/concept/finance/sercop/objective/104,CHEMICAL DESIGN,,41983,45563,1555,0,Design costs - setting images and text,Facilities & Management Services,190000
South Lakeland District Council,http://opendatacommunities.org/id/district-council/south-lakeland,31/02/2014,Coronation Hall,Cultural Environmental Regulatory & Planning Services,http://opendatacommunities.org/def/concept/finance/sercop/objective/104,CHEMICAL DESIGN,,41983,45563,1539.75,0,Design costs - setting images and text,Mail Services,300000
South Lakeland District Council,http://opendatacommunities.org/id/district-council/south-lakeland,31/02/2014,Policy & Partnerships,Central Services,http://opendatacommunities.org/def/concept/finance/sercop/objective/102,CUMBRIA COUNTY COUNCIL,,41988,45564,17442,0,1/ Estimate 2014/15 cost of SLDC,Financial Services,200000
South Lakeland District Council,http://opendatacommunities.org/id/district-council/south-lakeland,31/02/2014,Revenues and Benefits,Central Services,http://opendatacommunities.org/def/concept/finance/sercop/objective/102,MERITEC LTD,3224622,41988,45565,279,0,RAB Processing Contract and Agency,Consultancy,150000
South Lakeland District Council,http://opendatacommunities.org/id/district-council/south-lakeland,31/02/2014,Business Support Community Services,Internal Trading Accounts,,DENNIS EAGLE LTD,3794455,41983,45567,268.76,0,Link rod,Vehicle Management,380000
South Lakeland District Council,http://opendatacommunities.org/id/district-council/south-lakeland,31/02/2014,Technical Team,Cultural Environmental Regulatory & Planning Services,http://opendatacommunities.org/def/concept/finance/sercop/objective/104,Matchtech,2526418,41995,45569,781.2,0,TO SUPPLY CONTRACT 16,Consultancy,150000
South Lakeland District Council,http://opendatacommunities.org/id/district-council/south-lakeland,31/02/2014,Legal Services,Central Services,http://opendatacommunities.org/def/concept/finance/sercop/objective/102,NEWSQUEST (NORTH WEST) LTD,3102566,41983,45571,725,0,Advert re:  Local Authorities (Members',Facilities & Management Services,190000
South Lakeland District Council,http://opendatacommunities.org/id/district-council/south-lakeland,31/02/2014,ICT Group,Central Services,http://opendatacommunities.org/def/concept/finance/sercop/objective/102,PROBRAND LTD,2653446,41990,45573,266.52,0,EDR620/EB220H    Edge 10 - EB220h FullHD,Information Communication Technology,270000
South Lakeland District Council,http://opendatacommunities.org/id/district-council/south-lakeland,31/02/2014,Revenues and Benefits,Central Services,http://opendatacommunities.org/def/concept/finance/sercop/objective/102,BADENOCH & CLARK,1356186,41976,45575,533.4,0,Revs and Bens,Consultancy,150000
South Lakeland District Council,http://opendatacommunities.org/id/district-council/south-lakeland,31/02/2014,Lake Windermere,Cultural Environmental Regulatory & Planning Services,http://opendatacommunities.org/def/concept/finance/sercop/objective/104,LAKE WARDEN BOAT RFDS/PERMITS BACS,,41974,45577,279,,No description recorded,Arts & Leisure Services,290000
South Lakeland District Council,http://opendatacommunities.org/id/district-council/south-lakeland,31/02/2014,Debtors,Non-Service Payments,,LAKE WARDEN BOAT RFDS/PERMITS BACS,,41974,45580,371.59,,No description recorded,Financial Services,200000
South Lakeland District Council,http://opendatacommunities.org/id/district-council/south-lakeland,31/02/2014,Environment and Housing,Housing Services,http://opendatacommunities.org/def/concept/finance/sercop/objective/108,GROWING CONCERNS LANDSCAPING,,41974,45581,1315.08,0,Payment for Handy Person Scheme,"Works - Construction, Repair & Maintenance",390000
South Lakeland District Council,http://opendatacommunities.org/id/district-council/south-lakeland,31/02/2014,Business Support Community Services,Internal Trading Accounts,,Harry Park Tyres Ltd,8131208,41976,45583,660,0,Tyres,Vehicle Management,380000
South Lakeland District Council,http://opendatacommunities.org/id/district-council/south-lakeland,31/02/2014,Business Support Community Services,Internal Trading Accounts,,Harry Park Tyres Ltd,8131208,41976,45584,362.15,0,Tyres,Vehicle Management,380000
South Lakeland District Council,http://opendatacommunities.org/id/district-council/south-lakeland,31/02/2014,Business Support Community Services,Internal Trading Accounts,,Harry Park Tyres Ltd,8131208,41976,45585,3910,0,Tyres,Vehicle Management,380000
South Lakeland District Council,http://opendatacommunities.org/id/district-council/south-lakeland,31/02/2014,Business Support Community Services,Internal Trading Accounts,,Harry Park Tyres Ltd,8131208,41976,45586,340,0,Tyres,Vehicle Management,380000
South Lakeland District Council,http://opendatacommunities.org/id/district-council/south-lakeland,31/02/2014,Business Support Community Services,Internal Trading Accounts,,GREENCHEM SOLUTIONS LTD,5175801,41983,45588,452.96,0,Ad blue,Vehicle Management,380000
South Lakeland District Council,http://opendatacommunities.org/id/district-council/south-lakeland,31/02/2014,Business Support Community Services,Internal Trading Accounts,,Masterstaff Limited,2777593,41976,45589,429.98,0,Nov-14,Consultancy,150000
South Lakeland District Council,http://opendatacommunities.org/id/district-council/south-lakeland,31/02/2014,Electoral Services,Central Services,http://opendatacommunities.org/def/concept/finance/sercop/objective/102,SCI PRINT LTD,,41990,45591,5689.06,0,ITR and HEF 2nd Reminders plus postage,Mail Services,300000
South Lakeland District Council,http://opendatacommunities.org/id/district-council/south-lakeland,31/02/2014,Electoral Services,Central Services,http://opendatacommunities.org/def/concept/finance/sercop/objective/102,SCI PRINT LTD,,41990,45592,4310.04,0,Weekly IER Printing and Mailings plus,Mail Services,300000
South Lakeland District Council,http://opendatacommunities.org/id/district-council/south-lakeland,31/02/2014,Electoral Services,Central Services,http://opendatacommunities.org/def/concept/finance/sercop/objective/102,SCI PRINT LTD,,41990,45593,601.61,0,"IER New ITR's, Blank HEF's and Postage",Mail Services,300000
South Lakeland District Council,http://opendatacommunities.org/id/district-council/south-lakeland,31/02/2014,Electoral Services,Central Services,http://opendatacommunities.org/def/concept/finance/sercop/objective/102,SCI PRINT LTD,,41990,45594,870.41,0,"IER ITR's, Opt out, confirmations and",Mail Services,300000
South Lakeland District Council,http://opendatacommunities.org/id/district-council/south-lakeland,31/02/2014,Technical Team,Cultural Environmental Regulatory & Planning Services,http://opendatacommunities.org/def/concept/finance/sercop/objective/104,Llloyd Bore LTD,,41988,45595,400,0,Assessment of Crayfish Survey and,Consultancy,150000
South Lakeland District Council,http://opendatacommunities.org/id/district-council/south-lakeland,31/02/2014,Human Resources,Central Services,http://opendatacommunities.org/def/concept/finance/sercop/objective/102,Omniplex Ltd,,41988,45596,450,0,Storyline 2 for one license,Education,170000
South Lakeland District Council,http://opendatacommunities.org/id/district-council/south-lakeland,31/02/2014,Human Resources,Central Services,http://opendatacommunities.org/def/concept/finance/sercop/objective/102,Omniplex Ltd,,41988,45596,450,0,Storyline 2 for one license,Health & Safety,220000
South Lakeland District Council,http://opendatacommunities.org/id/district-council/south-lakeland,31/02/2014,Human Resources,Central Services,http://opendatacommunities.org/def/concept/finance/sercop/objective/102,MIDLAND SOFTWARE LTD,1852206,41990,45597,2915.12,0,iTrent Rental 01/07/2014 to 30/06/2015,Information Communication Technology,270000
South Lakeland District Council,http://opendatacommunities.org/id/district-council/south-lakeland,31/02/2014,Human Resources,Central Services,http://opendatacommunities.org/def/concept/finance/sercop/objective/102,APSE,6735100,41990,45599,798,0,Health and Safety in Waste and,Health & Safety,220000
South Lakeland District Council,http://opendatacommunities.org/id/district-council/south-lakeland,31/02/2014,Kendal Town Hall,Central Services,http://opendatacommunities.org/def/concept/finance/sercop/objective/102,SOA Safety,8080935,41976,45600,600,0,Ladder training and manual handling,Education,170000
South Lakeland District Council,http://opendatacommunities.org/id/district-council/south-lakeland,31/02/2014,Printing Section,Central Services,http://opendatacommunities.org/def/concept/finance/sercop/objective/102,STANDING STONE DRAWING OFFICE SUPPLIES,5128817,41988,45601,275,0,HP 4500 Scanner Lamp for,Stationery,340000
South Lakeland District Council,http://opendatacommunities.org/id/district-council/south-lakeland,31/02/2014,Development Strategy,SLDC as Agent,,H&H Land & Property Office,3780434,41976,45604,924,0,Work on Heversham & Hincaster,Financial Services,200000
South Lakeland District Council,http://opendatacommunities.org/id/district-council/south-lakeland,31/02/2014,Legal Services,Internal Trading Accounts,,PENNINGTONS (KENDAL) LIMITED,434649,41990,45607,2000,0,Annual Charge from 01 April 2014 to 31,Environmental Services,180000
South Lakeland District Council,http://opendatacommunities.org/id/district-council/south-lakeland,31/02/2014,Printing Section,Central Services,http://opendatacommunities.org/def/concept/finance/sercop/objective/102,ROSEFOX PAPER LIMITED,1655083,41983,45615,437.68,0,Pallet of Paper One A4 80gsm,Stationery,340000
South Lakeland District Council,http://opendatacommunities.org/id/district-council/south-lakeland,31/02/2014,Business Support Community Services,Internal Trading Accounts,,VOLVO GROUP UK LTD,2190944,41976,45618,400.5,0,Pump,Vehicle Management,380000
South Lakeland District Council,http://opendatacommunities.org/id/district-council/south-lakeland,31/02/2014,Business Support Community Services,Cultural Environmental Regulatory & Planning Services,http://opendatacommunities.org/def/concept/finance/sercop/objective/104,MTP Media (2008) Ltd,6491633,41981,45619,1119,0,Per quotation 28652 / A S,Facilities & Management Services,190000
South Lakeland District Council,http://opendatacommunities.org/id/district-council/south-lakeland,31/02/2014,Business Support Community Services,Internal Trading Accounts,,ALLSTAR BUSINESS SOLUTIONS LTD (NCR),2631112,42004,45621,4303.66,0,Fuel to 15/11,Utilities,370000
South Lakeland District Council,http://opendatacommunities.org/id/district-council/south-lakeland,31/02/2014,Business Support Community Services,Internal Trading Accounts,,ALLSTAR BUSINESS SOLUTIONS LTD (NCR),2631112,42004,45621,13413.95,0,Fuel to 15/11,Utilities,370000
South Lakeland District Council,http://opendatacommunities.org/id/district-council/south-lakeland,31/02/2014,Business Support Community Services,Internal Trading Accounts,,CUMBRIA TRUCK CENTRE LTD,4298488,41990,45622,434.1,0,Brake shoes,Vehicle Management,380000
South Lakeland District Council,http://opendatacommunities.org/id/district-council/south-lakeland,31/02/2014,ICT Group,SLDC as Agent,,CABLE & WIRELESS UK (VODAFONE),,41981,45623,331.53,0,Call Charges 26/1014 - 26/11/14,Financial Services,200000
South Lakeland District Council,http://opendatacommunities.org/id/district-council/south-lakeland,31/02/2014,Human Resources,Central Services,http://opendatacommunities.org/def/concept/finance/sercop/objective/102,MIDLAND SOFTWARE LTD,1852206,41988,45625,987,0,iTrent HRM: Navigation,Education,170000
South Lakeland District Council,http://opendatacommunities.org/id/district-council/south-lakeland,31/02/2014,Environment and Housing,Housing,http://opendatacommunities.org/def/concept/finance/sercop/objective/108,DOLPHIN STAIRLIFTS CUMBRIA,,41976,45638,2450,0,Crosthwaite LA8 8HU,Financial Services,200000
South Lakeland District Council,http://opendatacommunities.org/id/district-council/south-lakeland,31/02/2014,Environment and Housing,Housing,http://opendatacommunities.org/def/concept/finance/sercop/objective/108,FISC Healthcare LLP,OC381952,41976,45639,3830.75,0,"Flookburgh,",Financial Services,200000
South Lakeland District Council,http://opendatacommunities.org/id/district-council/south-lakeland,31/02/2014,Offices,Central Services,http://opendatacommunities.org/def/concept/finance/sercop/objective/102,UNITED UTILITIES WATER PLC,2366678,41981,45642,2703.96,,No description recorded,Environmental Services,180000
South Lakeland District Council,http://opendatacommunities.org/id/district-council/south-lakeland,31/02/2014,Town View Field Hostel,Housing Services,http://opendatacommunities.org/def/concept/finance/sercop/objective/108,UNITED UTILITIES WATER PLC,2366678,41981,45642,747.05,,No description recorded,Environmental Services,180000
South Lakeland District Council,http://opendatacommunities.org/id/district-council/south-lakeland,31/02/2014,Public Halls,Cultural Environmental Regulatory & Planning Services,http://opendatacommunities.org/def/concept/finance/sercop/objective/104,UNITED UTILITIES WATER PLC,2366678,41981,45642,1025.11,,No description recorded,Environmental Services,180000
South Lakeland District Council,http://opendatacommunities.org/id/district-council/south-lakeland,31/02/2014,Recreation Grounds,Cultural Environmental Regulatory & Planning Services,http://opendatacommunities.org/def/concept/finance/sercop/objective/104,UNITED UTILITIES WATER PLC,2366678,41981,45642,333.86,,No description recorded,Environmental Services,180000
South Lakeland District Council,http://opendatacommunities.org/id/district-council/south-lakeland,31/02/2014,Revenues and Benefits,Central Services,http://opendatacommunities.org/def/concept/finance/sercop/objective/102,MERITEC LTD,3224622,41990,45647,279,0,RAB Processing Contract and Agency,Consultancy,150000
South Lakeland District Council,http://opendatacommunities.org/id/district-council/south-lakeland,31/02/2014,Printing Section,Central Services,http://opendatacommunities.org/def/concept/finance/sercop/objective/102,GANDLAKE TECHNOLOGY LTD,,41990,45649,2211.63,0,2nd Quarter Lease for LaserServe,Information Communication Technology,270000
South Lakeland District Council,http://opendatacommunities.org/id/district-council/south-lakeland,31/02/2014,"Legal, Democratic and Members",Central Services,http://opendatacommunities.org/def/concept/finance/sercop/objective/102,HM LAND REGISTRY (DD),,42004,45650,300,,No description recorded,Legal Services,280000
South Lakeland District Council,http://opendatacommunities.org/id/district-council/south-lakeland,31/02/2014,Business Support Community Services,Housing Services,http://opendatacommunities.org/def/concept/finance/sercop/objective/108,James Andrews Recruitment Solutions,6834852,41981,45651,950,0,Payment,Consultancy,150000
South Lakeland District Council,http://opendatacommunities.org/id/district-council/south-lakeland,31/02/2014,Policy & Partnerships,Cultural Environmental Regulatory & Planning Services,http://opendatacommunities.org/def/concept/finance/sercop/objective/104,Hallgarth Community Centre Mgmt Committe,,41990,45652,26600,0,Hallgarth Community Centre Locally,Financial Services,200000
South Lakeland District Council,http://opendatacommunities.org/id/district-council/south-lakeland,31/02/2014,Legal Services,Central Services,http://opendatacommunities.org/def/concept/finance/sercop/objective/102,LOCAL GOVERNMENT ASSOCIATION,,41990,45655,1291.66,0,Re:  costs for Property Searches legal,Legal Services,280000
South Lakeland District Council,http://opendatacommunities.org/id/district-council/south-lakeland,31/02/2014,Human Resources,Central Services,http://opendatacommunities.org/def/concept/finance/sercop/objective/102,JK CONNECT CONSULTING,,41981,45656,530,0,1:1 mentoring,Education,170000
South Lakeland District Council,http://opendatacommunities.org/id/district-council/south-lakeland,31/02/2014,Business Support Community Services,SLDC as Agent,,DISCLOSURE AND BARRING SERVICE,,41990,45658,308,0,DBS checks for taxi drivers,Legal Services,280000
South Lakeland District Council,http://opendatacommunities.org/id/district-council/south-lakeland,31/02/2014,Social Enterprise Admin,External Trading Accounts,,MASON OWEN,2936041,41988,45659,933.54,0,Insurance 1/12/14 - 30/11/15,Financial Services,200000
South Lakeland District Council,http://opendatacommunities.org/id/district-council/south-lakeland,31/02/2014,Development Implementation,Central Services,http://opendatacommunities.org/def/concept/finance/sercop/objective/102,YWCA Kendal Ltd,6659701,41990,45660,484,0,Room hire - 18th to 21st November 2014,Education,170000
South Lakeland District Council,http://opendatacommunities.org/id/district-council/south-lakeland,31/02/2014,Business Support Community Services,SLDC as Agent,,JOANNA SMAILES,,41981,45662,2400,0,"Project Management, Cumbria NSNO &",Financial Services,200000
South Lakeland District Council,http://opendatacommunities.org/id/district-council/south-lakeland,31/02/2014,Business Support Community Services,Housing Services,http://opendatacommunities.org/def/concept/finance/sercop/objective/108,Cumbria Cleaning Services,9016061,41981,45663,380,0,"Cleaning carried at Flat 3, Beast Banks,",Social Community Care Supplies & Services,410000
South Lakeland District Council,http://opendatacommunities.org/id/district-council/south-lakeland,31/02/2014,Business Support Community Services,Internal Trading Accounts,,SITA UK LTD,2291198,41990,45664,23064.24,0,"Tipping & disposal charges, recyclables",Environmental Services,180000
South Lakeland District Council,http://opendatacommunities.org/id/district-council/south-lakeland,31/02/2014,Business Support Community Services,Internal Trading Accounts,,ALLSTAR BUSINESS SOLUTIONS LTD (NCR),2631112,42004,45665,3539.45,0,Fuel to 30/11,Utilities,370000
South Lakeland District Council,http://opendatacommunities.org/id/district-council/south-lakeland,31/02/2014,Business Support Community Services,Internal Trading Accounts,,ALLSTAR BUSINESS SOLUTIONS LTD (NCR),2631112,42004,45665,302.16,0,Fuel to 30/11,Utilities,370000
South Lakeland District Council,http://opendatacommunities.org/id/district-council/south-lakeland,31/02/2014,Business Support Community Services,Internal Trading Accounts,,ALLSTAR BUSINESS SOLUTIONS LTD (NCR),2631112,42004,45665,12313.85,0,Fuel to 30/11,Utilities,370000
South Lakeland District Council,http://opendatacommunities.org/id/district-council/south-lakeland,31/02/2014,ICT Group,Central Services,http://opendatacommunities.org/def/concept/finance/sercop/objective/102,CABLE & WIRELESS UK (VODAFONE),,41981,45666,4470.38,0,YC00013304 1/7/14 - 30/9/14 City,Information Communication Technology,270000
South Lakeland District Council,http://opendatacommunities.org/id/district-council/south-lakeland,31/02/2014,Development Implementation,Cultural Environmental Regulatory & Planning Services,http://opendatacommunities.org/def/concept/finance/sercop/objective/104,Douglas Wheeler Associates Ltd,SC368549,41990,45667,1040,0,Revisit/Update of the Kendal Economic,Financial Services,200000
South Lakeland District Council,http://opendatacommunities.org/id/district-council/south-lakeland,31/02/2014,Development Implementation,Cultural Environmental Regulatory & Planning Services,http://opendatacommunities.org/def/concept/finance/sercop/objective/104,Douglas Wheeler Associates Ltd,SC368549,41990,45667,895,0,Revisit/Update of the Kendal Economic,Consultancy,150000
South Lakeland District Council,http://opendatacommunities.org/id/district-council/south-lakeland,31/02/2014,Electoral Services,Central Services,http://opendatacommunities.org/def/concept/finance/sercop/objective/102,GATES TRAVEL SERVICE,,41990,45668,299,0,3 tickets Oxenholme to Cardiff return 1,Education,170000
South Lakeland District Council,http://opendatacommunities.org/id/district-council/south-lakeland,31/02/2014,Human Resources,Non-Service Payments,,BUSY BEES BENEFITS LTD,6758298,41981,45672,696,0,CHILD CARE VOUCHERS - APPROX 500.00 PER,Financial Services,200000
South Lakeland District Council,http://opendatacommunities.org/id/district-council/south-lakeland,31/02/2014,Human Resources,Non-Service Payments,,COMPUTERSHARE VOUCHER SERVICES LTD,4968447,41981,45674,672,0,CHULD CARE VOUCHERS - APPROX. 1000.00,Financial Services,200000
South Lakeland District Council,http://opendatacommunities.org/id/district-council/south-lakeland,31/02/2014,Business Support Community Services,Housing Services,http://opendatacommunities.org/def/concept/finance/sercop/objective/108,Edwin Thompson LLP Clients Account,,41981,45675,900,0,Rent in advance ,Social Community Care Supplies & Services,410000
South Lakeland District Council,http://opendatacommunities.org/id/district-council/south-lakeland,31/02/2014,Business Support Community Services,Housing Services,http://opendatacommunities.org/def/concept/finance/sercop/objective/108,Landlord,,41981,45676,400,0,Monthly rent ,Social Community Care Supplies & Services,410000
South Lakeland District Council,http://opendatacommunities.org/id/district-council/south-lakeland,31/02/2014,Business Support Community Services,Housing Services,http://opendatacommunities.org/def/concept/finance/sercop/objective/108,Landlord,,41981,45677,400,0,Monthly rent ,Social Community Care Supplies & Services,410000
South Lakeland District Council,http://opendatacommunities.org/id/district-council/south-lakeland,31/02/2014,Business Support Community Services,Housing Services,http://opendatacommunities.org/def/concept/finance/sercop/objective/108,Landlord,,41981,45678,400,0,Monthly rent ,Social Community Care Supplies & Services,410000
South Lakeland District Council,http://opendatacommunities.org/id/district-council/south-lakeland,31/02/2014,Business Support Community Services,Housing Services,http://opendatacommunities.org/def/concept/finance/sercop/objective/108,Landlord,,41981,45679,520,0,Monthly rent ,Social Community Care Supplies & Services,410000
South Lakeland District Council,http://opendatacommunities.org/id/district-council/south-lakeland,31/02/2014,Business Support Community Services,Housing Services,http://opendatacommunities.org/def/concept/finance/sercop/objective/108,Landlord,,41981,45680,520,0,Monthly rent ,Social Community Care Supplies & Services,410000
South Lakeland District Council,http://opendatacommunities.org/id/district-council/south-lakeland,31/02/2014,Business Support Community Services,Housing Services,http://opendatacommunities.org/def/concept/finance/sercop/objective/108,Landlord,7121028,41981,45681,400,0,Monthly rent ,Social Community Care Supplies & Services,410000
South Lakeland District Council,http://opendatacommunities.org/id/district-council/south-lakeland,31/02/2014,Technical Team,Cultural Environmental Regulatory & Planning Services,http://opendatacommunities.org/def/concept/finance/sercop/objective/104,Matchtech,2526418,41995,45684,756,0,TO SUPPLY CONTRACT 16,Consultancy,150000
South Lakeland District Council,http://opendatacommunities.org/id/district-council/south-lakeland,31/02/2014,Development Implementation,Cultural Environmental Regulatory & Planning Services,http://opendatacommunities.org/def/concept/finance/sercop/objective/104,CUMBRIA TOURISM,3027358,41990,45685,2045,0,STEAM Research for 2014,Environmental Services,180000
South Lakeland District Council,http://opendatacommunities.org/id/district-council/south-lakeland,31/02/2014,Environment and Housing,SLDC as Agent,,TEXTHELP SYSTEMS LTD,,41990,45686,1150,0,Licence renewal for Cumbria Choice,Financial Services,200000
South Lakeland District Council,http://opendatacommunities.org/id/district-council/south-lakeland,31/02/2014,Offices,Central Services,http://opendatacommunities.org/def/concept/finance/sercop/objective/102,NPOWER LTD (NCR),,42004,45690,1526.92,,No description recorded,Utilities,370000
South Lakeland District Council,http://opendatacommunities.org/id/district-council/south-lakeland,31/02/2014,Offices,Central Services,http://opendatacommunities.org/def/concept/finance/sercop/objective/102,NPOWER LTD (NCR),,42004,45690,836.83,,No description recorded,Utilities,370000
South Lakeland District Council,http://opendatacommunities.org/id/district-council/south-lakeland,31/02/2014,Offices,Central Services,http://opendatacommunities.org/def/concept/finance/sercop/objective/102,NPOWER LTD (NCR),,42004,45690,277.92,,No description recorded,Utilities,370000
South Lakeland District Council,http://opendatacommunities.org/id/district-council/south-lakeland,31/02/2014,Car Parks,Highways & Transport Services,http://opendatacommunities.org/def/concept/finance/sercop/objective/107,NPOWER LTD (NCR),,42004,45690,2388.87,,No description recorded,Utilities,370000
South Lakeland District Council,http://opendatacommunities.org/id/district-council/south-lakeland,31/02/2014,SLDC Depots,Transport Planning Policy,,NPOWER LTD (NCR),,42004,45690,1413.61,,No description recorded,Utilities,370000
South Lakeland District Council,http://opendatacommunities.org/id/district-council/south-lakeland,31/02/2014,SLDC Depots,Transport Planning Policy,,NPOWER LTD (NCR),,42004,45690,252.31,,No description recorded,Utilities,370000
South Lakeland District Council,http://opendatacommunities.org/id/district-council/south-lakeland,31/02/2014,SLDC Depots,Transport Planning Policy,,NPOWER LTD (NCR),,42004,45690,1394.63,,No description recorded,Utilities,370000
South Lakeland District Council,http://opendatacommunities.org/id/district-council/south-lakeland,31/02/2014,Lake Windermere,Cultural Environmental Regulatory & Planning Services,http://opendatacommunities.org/def/concept/finance/sercop/objective/104,NPOWER LTD (NCR),,42004,45690,906.55,,No description recorded,Utilities,370000
South Lakeland District Council,http://opendatacommunities.org/id/district-council/south-lakeland,31/02/2014,Markets,External Trading Accounts,,NPOWER LTD (NCR),,42004,45690,573.44,,No description recorded,Utilities,370000
South Lakeland District Council,http://opendatacommunities.org/id/district-council/south-lakeland,31/02/2014,Markets,External Trading Accounts,,NPOWER LTD (NCR),,42004,45690,1079.5,,No description recorded,Utilities,370000
South Lakeland District Council,http://opendatacommunities.org/id/district-council/south-lakeland,31/02/2014,Public Halls,Cultural Environmental Regulatory & Planning Services,http://opendatacommunities.org/def/concept/finance/sercop/objective/104,NPOWER LTD (NCR),,42004,45690,909.27,,No description recorded,Utilities,370000
South Lakeland District Council,http://opendatacommunities.org/id/district-council/south-lakeland,31/02/2014,Town View Field Hostel,Housing Services,http://opendatacommunities.org/def/concept/finance/sercop/objective/108,NPOWER LTD (NCR),,42004,45691,391.35,,No description recorded,Utilities,370000
South Lakeland District Council,http://opendatacommunities.org/id/district-council/south-lakeland,31/02/2014,Leisure Trust Account,SLDC as Agent,,NPOWER LTD (NCR),,42004,45691,629.07,,No description recorded,Utilities,370000
South Lakeland District Council,http://opendatacommunities.org/id/district-council/south-lakeland,31/02/2014,Debtors,Non-Service Payments,,SOUTH LAKES HOUSING RENT A/C,,41981,45692,3553.1,,No description recorded,Housing Management,250000
South Lakeland District Council,http://opendatacommunities.org/id/district-council/south-lakeland,31/02/2014,Electoral Services,Central Services,http://opendatacommunities.org/def/concept/finance/sercop/objective/102,ROYAL MAIL GROUP PLC,,41983,45696,578.21,0,Top up postage for IER returns,Mail Services,300000
South Lakeland District Council,http://opendatacommunities.org/id/district-council/south-lakeland,31/02/2014,Business Support Community Services,Internal Trading Accounts,,LAKELAND TRUCKS LTD,2464423,41988,45699,282.73,0,Repair AdBlue fault,Vehicle Management,380000
South Lakeland District Council,http://opendatacommunities.org/id/district-council/south-lakeland,31/02/2014,Business Support Community Services,Cultural Environmental Regulatory & Planning Services,http://opendatacommunities.org/def/concept/finance/sercop/objective/104,OCS GROUP LTD T/A CANNON HYGIENE LTD,1298292,41990,45701,1852.74,0,Clinical waste collections - November,Environmental Services,180000
South Lakeland District Council,http://opendatacommunities.org/id/district-council/south-lakeland,31/02/2014,Development Management,Cultural Environmental Regulatory & Planning Services,http://opendatacommunities.org/def/concept/finance/sercop/objective/104,IAN F NICHOLSON LTD,6768166,41981,45702,255.91,0,works to be supplied ,"Works - Construction, Repair & Maintenance",390000
South Lakeland District Council,http://opendatacommunities.org/id/district-council/south-lakeland,31/02/2014,Social Enterprise Admin,Cultural Environmental Regulatory & Planning Services,http://opendatacommunities.org/def/concept/finance/sercop/objective/104,Matchtech,2526418,41981,45703,1068.19,0,TO SUPPLY DEVELOPMENT CONTROL TEAM,Consultancy,150000
South Lakeland District Council,http://opendatacommunities.org/id/district-council/south-lakeland,31/02/2014,Social Enterprise Admin,Cultural Environmental Regulatory & Planning Services,http://opendatacommunities.org/def/concept/finance/sercop/objective/104,THOMSON REUTERS (PROFESSIONAL) UK LTD,1679046,41990,45704,1351.85,0,ENCYCLOPEDIA OF PLANNING LAW YEAR 2014,Stationery,340000
South Lakeland District Council,http://opendatacommunities.org/id/district-council/south-lakeland,31/02/2014,Development Strategy,Housing Services,http://opendatacommunities.org/def/concept/finance/sercop/objective/108,MORGAN HUNT UK LIMITED,4349535,41981,45705,773.3,0,Housing Advice Manager,Consultancy,150000
South Lakeland District Council,http://opendatacommunities.org/id/district-council/south-lakeland,31/02/2014,Development Strategy,Housing Services,http://opendatacommunities.org/def/concept/finance/sercop/objective/108,MORGAN HUNT UK LIMITED,4349535,41981,45705,773.3,0,Housing Advice Manager,Consultancy,150000
South Lakeland District Council,http://opendatacommunities.org/id/district-council/south-lakeland,31/02/2014,Revenues and Benefits,SLDC as Agent,,ROYAL MAIL GROUP PLC,,41983,45707,1289.97,0,2014-15  Postal Charges a/c 0198123013,Financial Services,200000
South Lakeland District Council,http://opendatacommunities.org/id/district-council/south-lakeland,31/02/2014,Social Enterprise Admin,Cultural Environmental Regulatory & Planning Services,http://opendatacommunities.org/def/concept/finance/sercop/objective/104,CAPITA SYMONDS LTD,3173410,41988,45709,2392.5,0,ARBORICULTURE SERVICES PROVIDED BY,Environmental Services,180000
South Lakeland District Council,http://opendatacommunities.org/id/district-council/south-lakeland,31/02/2014,Environmental Protection,Cultural Environmental Regulatory & Planning Services,http://opendatacommunities.org/def/concept/finance/sercop/objective/104,CONTINENTAL LANDSCAPES LTD,2108452,41990,45710,3582.38,0,Covering 12monthly payments for,Cemetery & Crematorium,120000
South Lakeland District Council,http://opendatacommunities.org/id/district-council/south-lakeland,31/02/2014,Social Enterprise Admin,Highways & Transport Services,http://opendatacommunities.org/def/concept/finance/sercop/objective/107,METRIC GROUP LIMITED,2560839,41995,45714,990,0,Chip and Pin costs for 66 machines 1,Vehicle Management,380000
South Lakeland District Council,http://opendatacommunities.org/id/district-council/south-lakeland,31/02/2014,Social Enterprise Admin,Highways & Transport Services,http://opendatacommunities.org/def/concept/finance/sercop/objective/107,METRIC GROUP LIMITED,2560839,41995,45715,693,0,Web hosting and web tariff editor for 66,Vehicle Management,380000
South Lakeland District Council,http://opendatacommunities.org/id/district-council/south-lakeland,31/02/2014,Business Support Community Services,Internal Trading Accounts,,BRIAN ARMISTEAD LTD T/A SINKFALL RECYCLI,4133280,41988,45717,824,0,Green waste tipping - April (estimated),Environmental Services,180000
South Lakeland District Council,http://opendatacommunities.org/id/district-council/south-lakeland,31/02/2014,Social Enterprise Admin,Highways & Transport Services,http://opendatacommunities.org/def/concept/finance/sercop/objective/107,VODAFONE LIMITED,1471587,41988,45720,265.1,0,Mobile phones for enforcement staff,Information Communication Technology,270000
South Lakeland District Council,http://opendatacommunities.org/id/district-council/south-lakeland,31/02/2014,Development Implementation,Cultural Environmental Regulatory & Planning Services,http://opendatacommunities.org/def/concept/finance/sercop/objective/104,Max Associates (Holdings Ltd),,41995,45721,2500,0,Additional Work - Grange over Sands Lido,Financial Services,200000
South Lakeland District Council,http://opendatacommunities.org/id/district-council/south-lakeland,31/02/2014,Social Enterprise Admin,Highways & Transport Services,http://opendatacommunities.org/def/concept/finance/sercop/objective/107,ALLSTAR BUSINESS SOLUTIONS LTD (NCR),2631112,42004,45722,261.36,0,Fuel for car parks' vehicles starting 1,Utilities,370000
South Lakeland District Council,http://opendatacommunities.org/id/district-council/south-lakeland,31/02/2014,Social Enterprise Admin,Highways & Transport Services,http://opendatacommunities.org/def/concept/finance/sercop/objective/107,ALLSTAR BUSINESS SOLUTIONS LTD (NCR),2631112,42004,45723,266.5,0,Fuel for car parks' vehicles starting 1,Utilities,370000
South Lakeland District Council,http://opendatacommunities.org/id/district-council/south-lakeland,31/02/2014,Social Enterprise Admin,Cultural Environmental Regulatory & Planning Services,http://opendatacommunities.org/def/concept/finance/sercop/objective/104,North Country Leisure,3683103,41983,45726,161873,0,Bid 2014/2015,Arts & Leisure Services,290000
South Lakeland District Council,http://opendatacommunities.org/id/district-council/south-lakeland,31/02/2014,Public Halls,Cultural Environmental Regulatory & Planning Services,http://opendatacommunities.org/def/concept/finance/sercop/objective/104,CASTLE ALARMS 1981 LTD,9231500,41983,45727,795,,No description recorded,"Works - Construction, Repair & Maintenance",390000
South Lakeland District Council,http://opendatacommunities.org/id/district-council/south-lakeland,31/02/2014,Public Halls,Cultural Environmental Regulatory & Planning Services,http://opendatacommunities.org/def/concept/finance/sercop/objective/104,CASTLE ALARMS 1981 LTD,9231500,41983,45728,2339,,No description recorded,"Works - Construction, Repair & Maintenance",390000
South Lakeland District Council,http://opendatacommunities.org/id/district-council/south-lakeland,31/02/2014,Sundry Properties,External Trading Accounts,,J CHAPLOW & SONS LTD,335899,41983,45729,265,,No description recorded,"Works - Construction, Repair & Maintenance",390000
South Lakeland District Council,http://opendatacommunities.org/id/district-council/south-lakeland,31/02/2014,Business Support Community Services,Cultural Environmental Regulatory & Planning Services,http://opendatacommunities.org/def/concept/finance/sercop/objective/104,M. J. FIELDING,,41984,45732,522.65,0,Visit to inspect Zoo at Predator,Healthcare,310000
South Lakeland District Council,http://opendatacommunities.org/id/district-council/south-lakeland,31/02/2014,Human Resources,Central Services,http://opendatacommunities.org/def/concept/finance/sercop/objective/102,FORBES SOLICITORS,,41983,45735,565,0,General Legal Advise,Legal Services,280000
South Lakeland District Council,http://opendatacommunities.org/id/district-council/south-lakeland,31/02/2014,Development Implementation,Cultural Environmental Regulatory & Planning Services,http://opendatacommunities.org/def/concept/finance/sercop/objective/104,Carney Green LLP,OC384639,41995,45739,4200,0,Socio-Economic Study for Grange Lido,Financial Services,200000
South Lakeland District Council,http://opendatacommunities.org/id/district-council/south-lakeland,31/02/2014,Policy & Partnerships,Cultural Environmental Regulatory & Planning Services,http://opendatacommunities.org/def/concept/finance/sercop/objective/104,GRANTS- MISCELLANEOUS,,41983,45740,650,0,The funding will be spent on,Financial Services,200000
South Lakeland District Council,http://opendatacommunities.org/id/district-council/south-lakeland,31/02/2014,Business Support Community Services,Culture and Related Serv,,North Country Leisure,3683103,41983,45741,91545.48,0,Works to Kendal and Ulverston Leisure,Financial Services,200000
South Lakeland District Council,http://opendatacommunities.org/id/district-council/south-lakeland,31/02/2014,Human Resources,Central Services,http://opendatacommunities.org/def/concept/finance/sercop/objective/102,GBS Corporate Training,6452080,41995,45742,995,0,Cutting Bureaucracy 25/06/2014,Education,170000
South Lakeland District Council,http://opendatacommunities.org/id/district-council/south-lakeland,31/02/2014,Human Resources,Central Services,http://opendatacommunities.org/def/concept/finance/sercop/objective/102,KENDAL COLLEGE,,41995,45745,350,0,Intermediate Word 11/06/2014,Education,170000
South Lakeland District Council,http://opendatacommunities.org/id/district-council/south-lakeland,31/02/2014,Human Resources,Central Services,http://opendatacommunities.org/def/concept/finance/sercop/objective/102,KENDAL COLLEGE,,41995,45746,350,0,Intermediate Word 11/06/2014,Education,170000
South Lakeland District Council,http://opendatacommunities.org/id/district-council/south-lakeland,31/02/2014,Human Resources,Central Services,http://opendatacommunities.org/def/concept/finance/sercop/objective/102,KENDAL COLLEGE,,41995,45747,350,0,Intermediate Word 11/06/2014,Education,170000
South Lakeland District Council,http://opendatacommunities.org/id/district-council/south-lakeland,31/02/2014,ICT Group,Central Services,http://opendatacommunities.org/def/concept/finance/sercop/objective/102,THE DOCUMENT MANAGEMENT GROUP LTD,5210023,41995,45748,329,0,Consumable kit for the Fi5900c scanner,Information Communication Technology,270000
South Lakeland District Council,http://opendatacommunities.org/id/district-council/south-lakeland,31/02/2014,Business Support Community Services,Internal Trading Accounts,,HYDRAIR TRUCK & TRAILER PARTS LTD,,41983,45750,439.64,0,Spring,Vehicle Management,380000
South Lakeland District Council,http://opendatacommunities.org/id/district-council/south-lakeland,31/02/2014,Business Support Community Services,Internal Trading Accounts,,PROBRUSH T/A NORTHERN MUNICIPAL SPARES L,,41983,45754,1787.82,0,Brushes,Vehicle Management,380000
South Lakeland District Council,http://opendatacommunities.org/id/district-council/south-lakeland,31/02/2014,Business Support Community Services,Internal Trading Accounts,,PROBRUSH T/A NORTHERN MUNICIPAL SPARES L,,41983,45755,1226.1,0,Brushes,Vehicle Management,380000
South Lakeland District Council,http://opendatacommunities.org/id/district-council/south-lakeland,31/02/2014,Business Support Community Services,Internal Trading Accounts,,POST OFFICE LTD,2154540,41984,45757,450,0,Licence SL080 & SL081,Vehicle Management,380000
South Lakeland District Council,http://opendatacommunities.org/id/district-council/south-lakeland,31/02/2014,Business Support Community Services,Internal Trading Accounts,,HYDRAIR TRUCK & TRAILER PARTS LTD,,41995,45758,635,0,Spring,Vehicle Management,380000
South Lakeland District Council,http://opendatacommunities.org/id/district-council/south-lakeland,31/02/2014,Business Support Community Services,Internal Trading Accounts,,HYDRAIR TRUCK & TRAILER PARTS LTD,,41995,45759,362.79,0,Spring,Vehicle Management,380000
South Lakeland District Council,http://opendatacommunities.org/id/district-council/south-lakeland,31/02/2014,Social Enterprise Admin,Central Services,http://opendatacommunities.org/def/concept/finance/sercop/objective/102,ADECCO UK LIMITED,593232,41988,45765,530.21,0,To supply for period,Consultancy,150000
South Lakeland District Council,http://opendatacommunities.org/id/district-council/south-lakeland,31/02/2014,Human Resources,Central Services,http://opendatacommunities.org/def/concept/finance/sercop/objective/102,THE QUAKER TAPESTRY KENDAL LTD,,41988,45767,408,0,Room Hire 19th and 20th Nov,Education,170000
South Lakeland District Council,http://opendatacommunities.org/id/district-council/south-lakeland,31/02/2014,Payroll Deductions,Non-Service Payments,,INLAND REVENUE (CHAPS),,42004,45771,81604.04,,No description recorded,Financial Services,200000
South Lakeland District Council,http://opendatacommunities.org/id/district-council/south-lakeland,31/02/2014,Payroll Deductions,Non-Service Payments,,INLAND REVENUE (CHAPS),,42004,45771,93097.05,,No description recorded,Financial Services,200000
South Lakeland District Council,http://opendatacommunities.org/id/district-council/south-lakeland,31/02/2014,Payroll Deductions,Non-Service Payments,,INLAND REVENUE (CHAPS),,42004,45771,701,,No description recorded,Financial Services,200000
South Lakeland District Council,http://opendatacommunities.org/id/district-council/south-lakeland,31/02/2014,Payroll Deductions,Non-Service Payments,,CUMBRIA COUNTY COUNCIL (CHAPS),,42004,45773,97890.84,,No description recorded,Financial Services,200000
South Lakeland District Council,http://opendatacommunities.org/id/district-council/south-lakeland,31/02/2014,Payroll Deductions,Non-Service Payments,,CUMBRIA COUNTY COUNCIL (CHAPS),,42004,45773,44242.94,,No description recorded,Financial Services,200000
South Lakeland District Council,http://opendatacommunities.org/id/district-council/south-lakeland,31/02/2014,Business Support Community Services,Internal Trading Accounts,,GEESINK NORBA LTD,306452,41988,45779,280.17,0,Incoder,Vehicle Management,380000
South Lakeland District Council,http://opendatacommunities.org/id/district-council/south-lakeland,31/02/2014,Development Implementation,Cultural Environmental Regulatory & Planning Services,http://opendatacommunities.org/def/concept/finance/sercop/objective/104,PS BUSINESS MATTERS,8147185,41995,45780,1500,0,Kendal Futures Programme Support,Environmental Services,180000
South Lakeland District Council,http://opendatacommunities.org/id/district-council/south-lakeland,31/02/2014,ICT Group,Central Services,http://opendatacommunities.org/def/concept/finance/sercop/objective/102,PROBRAND LTD,2653446,41995,45781,995.68,0,"SL107/SM-T230NYKABTU Samsung - Tab 4,",Information Communication Technology,270000
South Lakeland District Council,http://opendatacommunities.org/id/district-council/south-lakeland,31/02/2014,District Special Expenses,Highways & Transport Services,http://opendatacommunities.org/def/concept/finance/sercop/objective/107,E ON ENERGY,4060387,41983,45786,1801.57,,No description recorded,Utilities,370000
South Lakeland District Council,http://opendatacommunities.org/id/district-council/south-lakeland,31/02/2014,Parish Lighting,SLDC as Agent,,E ON ENERGY,4060387,41983,45786,602.61,,No description recorded,Utilities,370000
South Lakeland District Council,http://opendatacommunities.org/id/district-council/south-lakeland,31/02/2014,Business Support Community Services,Cultural Environmental Regulatory & Planning Services,http://opendatacommunities.org/def/concept/finance/sercop/objective/104,Floodsafe Projects Ltd,8418342,41990,45788,3993,0,Flood protection measures as per Quote,Arts & Leisure Services,290000
South Lakeland District Council,http://opendatacommunities.org/id/district-council/south-lakeland,31/02/2014,Business Support Community Services,Cultural Environmental Regulatory & Planning Services,http://opendatacommunities.org/def/concept/finance/sercop/objective/104,MILNTHORPE KENNELS & CATTERY,8932302,41995,45790,2382.33,0,Stray dog kennelling fees April 20014 -,Environmental Services,180000
South Lakeland District Council,http://opendatacommunities.org/id/district-council/south-lakeland,31/02/2014,Business Support Community Services,Internal Trading Accounts,,VPG SYSTEMS UK LIMITED,4348343,41995,45793,448.51,0,Pressure transducer,Vehicle Management,380000
South Lakeland District Council,http://opendatacommunities.org/id/district-council/south-lakeland,31/02/2014,Coronation Hall,Cultural Environmental Regulatory & Planning Services,http://opendatacommunities.org/def/concept/finance/sercop/objective/104,ST JOHN AMBULANCE CUMBRIA,,41995,45796,264,0,FAO ,Consultancy,150000
South Lakeland District Council,http://opendatacommunities.org/id/district-council/south-lakeland,31/02/2014,Development Strategy,Cultural Environmental Regulatory & Planning Services,http://opendatacommunities.org/def/concept/finance/sercop/objective/104,FURNESS NEWSPAPERS LTD,1155841,41988,45798,587.7,0,Legal notice in NW Evening Mail on 4th,Facilities & Management Services,190000
South Lakeland District Council,http://opendatacommunities.org/id/district-council/south-lakeland,31/02/2014,Development Strategy,Cultural Environmental Regulatory & Planning Services,http://opendatacommunities.org/def/concept/finance/sercop/objective/104,FURNESS NEWSPAPERS LTD,1155841,41988,45799,470.16,0,Legal notice in NW Evening Mail on 4th,Facilities & Management Services,190000
South Lakeland District Council,http://opendatacommunities.org/id/district-council/south-lakeland,31/02/2014,Development Strategy,Cultural Environmental Regulatory & Planning Services,http://opendatacommunities.org/def/concept/finance/sercop/objective/104,Matchtech,2526418,41983,45800,283.46,0,"12-week contract, 30hrs",Consultancy,150000
South Lakeland District Council,http://opendatacommunities.org/id/district-council/south-lakeland,31/02/2014,Social Enterprise Admin,Cultural Environmental Regulatory & Planning Services,http://opendatacommunities.org/def/concept/finance/sercop/objective/104,Matchtech,2526418,41988,45801,1068.19,0,TO SUPPLY DEVELOPMENT CONTROL TEAM,Consultancy,150000
South Lakeland District Council,http://opendatacommunities.org/id/district-council/south-lakeland,31/02/2014,Legal Services,Central Services,http://opendatacommunities.org/def/concept/finance/sercop/objective/102,THOMSON REUTERS (PROFESSIONAL) UK LTD,1679046,41990,45802,943,0,Annual subscription for 2015,Stationery,340000
South Lakeland District Council,http://opendatacommunities.org/id/district-council/south-lakeland,31/02/2014,Business Support Community Services,Internal Trading Accounts,,BRIAN ARMISTEAD LTD T/A SINKFALL RECYCLI,4133280,41990,45803,797.2,0,Green waste tipping - April (estimated),Environmental Services,180000
South Lakeland District Council,http://opendatacommunities.org/id/district-council/south-lakeland,31/02/2014,Social Enterprise Admin,Highways & Transport Services,http://opendatacommunities.org/def/concept/finance/sercop/objective/107,PARKING INFRASTRUCTURE SERVICE UK,,41988,45805,1000,0,Ref:  SLDC/FF/000101/DF.  SLDC Data,Vehicle Management,380000
South Lakeland District Council,http://opendatacommunities.org/id/district-council/south-lakeland,31/02/2014,Development Strategy,Cultural Environmental Regulatory & Planning Services,http://opendatacommunities.org/def/concept/finance/sercop/objective/104,HDH Planning and Development Ltd,8555548,41995,45807,4875,0,CIL Viability work: 7.5 days,Consultancy,150000
South Lakeland District Council,http://opendatacommunities.org/id/district-council/south-lakeland,31/02/2014,Social Enterprise Admin,Highways & Transport Services,http://opendatacommunities.org/def/concept/finance/sercop/objective/107,METRIC GROUP LIMITED,2560839,41995,45808,285,0,Machine maintenance contract from 1,Vehicle Management,380000
South Lakeland District Council,http://opendatacommunities.org/id/district-council/south-lakeland,31/02/2014,Social Enterprise Admin,Highways & Transport Services,http://opendatacommunities.org/def/concept/finance/sercop/objective/107,METRIC GROUP LIMITED,2560839,41995,45808,356.25,0,Machine maintenance contract from 1,Vehicle Management,380000
South Lakeland District Council,http://opendatacommunities.org/id/district-council/south-lakeland,31/02/2014,Social Enterprise Admin,Highways & Transport Services,http://opendatacommunities.org/def/concept/finance/sercop/objective/107,METRIC GROUP LIMITED,2560839,41995,45808,356.25,0,Machine maintenance contract from 1,Vehicle Management,380000
South Lakeland District Council,http://opendatacommunities.org/id/district-council/south-lakeland,31/02/2014,Lake Wardens,SLDC as Agent,,LAKE DISTRICT NATIONAL PARK AUTHORITY,,41990,45811,563,0,Monthly Invoices for 2014-2015 for Boat,Financial Services,200000
South Lakeland District Council,http://opendatacommunities.org/id/district-council/south-lakeland,31/02/2014,Legal Services,Central Services,http://opendatacommunities.org/def/concept/finance/sercop/objective/102,VENN GROUP RECRUITMENT SOLUTIONS,,41983,45812,479.27,0,Wages from w/k ending,Consultancy,150000
South Lakeland District Council,http://opendatacommunities.org/id/district-council/south-lakeland,31/02/2014,Museum,Cultural Environmental Regulatory & Planning Services,http://opendatacommunities.org/def/concept/finance/sercop/objective/104,INTEGRAL,,41990,45813,11740,,No description recorded,"Works - Construction, Repair & Maintenance",390000
South Lakeland District Council,http://opendatacommunities.org/id/district-council/south-lakeland,31/02/2014,Sundry Properties,External Trading Accounts,,Vertical Access Ltd,2278345,41990,45814,900,,No description recorded,"Works - Construction, Repair & Maintenance",390000
South Lakeland District Council,http://opendatacommunities.org/id/district-council/south-lakeland,31/02/2014,Development Implementation,Cultural Environmental Regulatory & Planning Services,http://opendatacommunities.org/def/concept/finance/sercop/objective/104,MTM Presentations Ltd,4772450,41983,45816,2095,0,Hire of Ice Rink for Kendal - December,Environmental Services,180000
South Lakeland District Council,http://opendatacommunities.org/id/district-council/south-lakeland,31/02/2014,Social Enterprise Admin,Cultural Environmental Regulatory & Planning Services,http://opendatacommunities.org/def/concept/finance/sercop/objective/104,CONTINENTAL LANDSCAPES LTD,2108452,41990,45817,19023.6,0,Grounds maintenance 14-15,Horticultural,240000
South Lakeland District Council,http://opendatacommunities.org/id/district-council/south-lakeland,31/02/2014,Social Enterprise Admin,Cultural Environmental Regulatory & Planning Services,http://opendatacommunities.org/def/concept/finance/sercop/objective/104,CONTINENTAL LANDSCAPES LTD,2108452,41990,45817,1376.57,0,Grounds maintenance 14-15,Cemetery & Crematorium,120000
South Lakeland District Council,http://opendatacommunities.org/id/district-council/south-lakeland,31/02/2014,Social Enterprise Admin,Cultural Environmental Regulatory & Planning Services,http://opendatacommunities.org/def/concept/finance/sercop/objective/104,CONTINENTAL LANDSCAPES LTD,2108452,41990,45817,35966.53,0,Grounds maintenance 14-15,Horticultural,240000
South Lakeland District Council,http://opendatacommunities.org/id/district-council/south-lakeland,31/02/2014,Social Enterprise Admin,Cultural Environmental Regulatory & Planning Services,http://opendatacommunities.org/def/concept/finance/sercop/objective/104,CONTINENTAL LANDSCAPES LTD,2108452,41990,45817,2259.05,0,Grounds maintenance 14-15,Horticultural,240000
South Lakeland District Council,http://opendatacommunities.org/id/district-council/south-lakeland,31/02/2014,Human Resources,Central Services,http://opendatacommunities.org/def/concept/finance/sercop/objective/102,Omniplex Ltd,,41995,45818,450,0,license for laptop,Health & Safety,220000
South Lakeland District Council,http://opendatacommunities.org/id/district-council/south-lakeland,31/02/2014,Environment and Housing,Housing,http://opendatacommunities.org/def/concept/finance/sercop/objective/108,SOUTH LAKES HOUSING,IP031419,41995,45823,167395.33,0,"Binfold Croft, Kirkby Lonsdale",Financial Services,200000
South Lakeland District Council,http://opendatacommunities.org/id/district-council/south-lakeland,31/02/2014,Social Enterprise Admin,Highways & Transport Services,http://opendatacommunities.org/def/concept/finance/sercop/objective/107,G4S SECURE SOLUTIONS (UK) LTD,1046019,41990,45824,833.18,0,Patrol Services for South Lakeland House,Consultancy,150000
South Lakeland District Council,http://opendatacommunities.org/id/district-council/south-lakeland,31/02/2014,Revenues and Benefits,SLDC as Agent,,ROYAL MAIL GROUP PLC,,41988,45825,2086.88,0,2014-15  Postal Charges a/c 0198123013,Financial Services,200000
South Lakeland District Council,http://opendatacommunities.org/id/district-council/south-lakeland,31/02/2014,Business Support Community Services,Housing Services,http://opendatacommunities.org/def/concept/finance/sercop/objective/108,James Andrews Recruitment Solutions,6834852,41988,45830,931.25,0,Payment ,Consultancy,150000
South Lakeland District Council,http://opendatacommunities.org/id/district-council/south-lakeland,31/02/2014,Business Support Community Services,Internal Trading Accounts,,FREIGHT TRANSPORT ASSOCIATION,,41990,45831,288.2,0,Record books,Cleaning & Janitorial,130000
South Lakeland District Council,http://opendatacommunities.org/id/district-council/south-lakeland,31/02/2014,Business Support Community Services,Internal Trading Accounts,,FAUN ZOELLER (UK) LTD,751804,41988,45832,1046.8,0,Repair bin lift,Vehicle Management,380000
South Lakeland District Council,http://opendatacommunities.org/id/district-council/south-lakeland,31/02/2014,Development Implementation,Cultural Environmental Regulatory & Planning Services,http://opendatacommunities.org/def/concept/finance/sercop/objective/104,Kev Kendal,,41995,45833,600,0,Supply of entertainment for Kendal,Environmental Services,180000
South Lakeland District Council,http://opendatacommunities.org/id/district-council/south-lakeland,31/02/2014,Democratic Services,Central Services,http://opendatacommunities.org/def/concept/finance/sercop/objective/102,VODAFONE LIMITED,1471587,41988,45838,440,0,Account number 683196600,Utilities,370000
South Lakeland District Council,http://opendatacommunities.org/id/district-council/south-lakeland,31/02/2014,Business Support Community Services,Housing Services,http://opendatacommunities.org/def/concept/finance/sercop/objective/108,Landlord,,41988,45841,890,0,Monthly rent ,Social Community Care Supplies & Services,410000
South Lakeland District Council,http://opendatacommunities.org/id/district-council/south-lakeland,31/02/2014,Business Support Community Services,Housing Services,http://opendatacommunities.org/def/concept/finance/sercop/objective/108,Landlord,8672920,41988,45842,400,0,Monthly rent ,Social Community Care Supplies & Services,410000
South Lakeland District Council,http://opendatacommunities.org/id/district-council/south-lakeland,31/02/2014,Business Support Community Services,Housing Services,http://opendatacommunities.org/def/concept/finance/sercop/objective/108,Landlord,,41988,45843,1190,0,Monthly rent ,Social Community Care Supplies & Services,410000
South Lakeland District Council,http://opendatacommunities.org/id/district-council/south-lakeland,31/02/2014,Business Support Community Services,Housing Services,http://opendatacommunities.org/def/concept/finance/sercop/objective/108,Landlord,7009105,41988,45844,480,0,Monthly rent ,Social Community Care Supplies & Services,410000
South Lakeland District Council,http://opendatacommunities.org/id/district-council/south-lakeland,31/02/2014,Business Support Community Services,Housing Services,http://opendatacommunities.org/def/concept/finance/sercop/objective/108,Landlord,,41988,45845,400,0,Monthly rent ,Social Community Care Supplies & Services,410000
South Lakeland District Council,http://opendatacommunities.org/id/district-council/south-lakeland,31/02/2014,Business Support Community Services,Housing Services,http://opendatacommunities.org/def/concept/finance/sercop/objective/108,Landlord,,41988,45846,480,0,Monthly rent ,Social Community Care Supplies & Services,410000
South Lakeland District Council,http://opendatacommunities.org/id/district-council/south-lakeland,31/02/2014,Business Support Community Services,Housing Services,http://opendatacommunities.org/def/concept/finance/sercop/objective/108,Landlord,,41988,45847,475,0,Monthly rent ,Social Community Care Supplies & Services,410000
South Lakeland District Council,http://opendatacommunities.org/id/district-council/south-lakeland,31/02/2014,Business Support Community Services,Housing Services,http://opendatacommunities.org/def/concept/finance/sercop/objective/108,Landlord,,41988,45848,500,0,Monthly rent ,Social Community Care Supplies & Services,410000
South Lakeland District Council,http://opendatacommunities.org/id/district-council/south-lakeland,31/02/2014,Business Support Community Services,Housing Services,http://opendatacommunities.org/def/concept/finance/sercop/objective/108,Landlord,,41988,45849,625,0,Monthly rent ,Social Community Care Supplies & Services,410000
South Lakeland District Council,http://opendatacommunities.org/id/district-council/south-lakeland,31/02/2014,Business Support Community Services,Housing Services,http://opendatacommunities.org/def/concept/finance/sercop/objective/108,Landlord,,41988,45850,500,0,Monthly rent ,Social Community Care Supplies & Services,410000
South Lakeland District Council,http://opendatacommunities.org/id/district-council/south-lakeland,31/02/2014,Business Support Community Services,Housing Services,http://opendatacommunities.org/def/concept/finance/sercop/objective/108,Landlord,,41988,45851,500,0,Monthly rent ,Social Community Care Supplies & Services,410000
South Lakeland District Council,http://opendatacommunities.org/id/district-council/south-lakeland,31/02/2014,Business Support Community Services,Housing Services,http://opendatacommunities.org/def/concept/finance/sercop/objective/108,Landlord,,41988,45852,410,0,Monthly rent ,Social Community Care Supplies & Services,410000
South Lakeland District Council,http://opendatacommunities.org/id/district-council/south-lakeland,31/02/2014,Business Support Community Services,Housing Services,http://opendatacommunities.org/def/concept/finance/sercop/objective/108,Landlord,,41988,45853,625,0,Monthly rent ,Social Community Care Supplies & Services,410000
South Lakeland District Council,http://opendatacommunities.org/id/district-council/south-lakeland,31/02/2014,Business Support Community Services,Housing Services,http://opendatacommunities.org/def/concept/finance/sercop/objective/108,Landlord,,41988,45854,500,0,Monthly rent ,Social Community Care Supplies & Services,410000
South Lakeland District Council,http://opendatacommunities.org/id/district-council/south-lakeland,31/02/2014,Business Support Community Services,Housing Services,http://opendatacommunities.org/def/concept/finance/sercop/objective/108,Landlord,,41988,45855,600,0,Monthly rent ,Social Community Care Supplies & Services,410000
South Lakeland District Council,http://opendatacommunities.org/id/district-council/south-lakeland,31/02/2014,Business Support Community Services,Housing Services,http://opendatacommunities.org/def/concept/finance/sercop/objective/108,Landlord,7803122,41988,45856,500,0,Monthly rent ,Social Community Care Supplies & Services,410000
South Lakeland District Council,http://opendatacommunities.org/id/district-council/south-lakeland,31/02/2014,Business Support Community Services,Housing Services,http://opendatacommunities.org/def/concept/finance/sercop/objective/108,Landlord,,41988,45857,625,0,Monthly rent ,Social Community Care Supplies & Services,410000
South Lakeland District Council,http://opendatacommunities.org/id/district-council/south-lakeland,31/02/2014,Business Support Community Services,Housing Services,http://opendatacommunities.org/def/concept/finance/sercop/objective/108,Landlord,,41988,45858,500,0,Monthly rent ,Social Community Care Supplies & Services,410000
South Lakeland District Council,http://opendatacommunities.org/id/district-council/south-lakeland,31/02/2014,Environment and Housing,Housing Services,http://opendatacommunities.org/def/concept/finance/sercop/objective/108,GROWING CONCERNS LANDSCAPING,,41988,45860,450.8,0,Payment for Handy Person Scheme,"Works - Construction, Repair & Maintenance",390000
South Lakeland District Council,http://opendatacommunities.org/id/district-council/south-lakeland,31/02/2014,Environment and Housing,Housing,http://opendatacommunities.org/def/concept/finance/sercop/objective/108,ENVIRONMENT & HOUSING GRANTS,,41988,45861,16800,0,"Slackhead, Beetham,",Financial Services,200000
South Lakeland District Council,http://opendatacommunities.org/id/district-council/south-lakeland,31/02/2014,Kendal Town Hall,Cultural Environmental Regulatory & Planning Services,http://opendatacommunities.org/def/concept/finance/sercop/objective/104,PHONOGRAPHIC PERFORMANCE LIMITED,288046,41990,45870,255.77,0,Phographic Performance for KTH April 14-,Financial Services,200000
South Lakeland District Council,http://opendatacommunities.org/id/district-council/south-lakeland,31/02/2014,Development Implementation,Cultural Environmental Regulatory & Planning Services,http://opendatacommunities.org/def/concept/finance/sercop/objective/104,SKV Communications,3495502,41990,45871,1125,0,Provision of PR/Marketing Support for,Environmental Services,180000
South Lakeland District Council,http://opendatacommunities.org/id/district-council/south-lakeland,31/02/2014,Debtors,Non-Service Payments,,SOUTH LAKES HOUSING,IP031419,41988,45873,5620.14,,No description recorded,Housing Management,250000
South Lakeland District Council,http://opendatacommunities.org/id/district-council/south-lakeland,31/02/2014,Social Enterprise Admin,Cultural Environmental Regulatory & Planning Services,http://opendatacommunities.org/def/concept/finance/sercop/objective/104,ARB CONSULTANTS LTD,6082066,41988,45874,2931.83,0,To provide tree officer services 1.10.14,Facilities & Management Services,190000
South Lakeland District Council,http://opendatacommunities.org/id/district-council/south-lakeland,31/02/2014,Financial Services,SLDC as Agent,,KIRKLAND TRUST (KENDAL),,41988,45875,5262,0,14/15 Kirkland Car Park Income,Financial Services,200000
South Lakeland District Council,http://opendatacommunities.org/id/district-council/south-lakeland,31/02/2014,Financial Services,SLDC as Agent,,LAKELAND ESTATES (AMBLESIDE) LTD,3022544,41988,45876,9553.85,0,14/15 Millerfield Car Park Income,Financial Services,200000
South Lakeland District Council,http://opendatacommunities.org/id/district-council/south-lakeland,31/02/2014,Policy & Partnerships,Cultural Environmental Regulatory & Planning Services,http://opendatacommunities.org/def/concept/finance/sercop/objective/104,HIGHLIGHTS PRODUCTIONS LTD,,41990,45877,3500,0,year 2 grant payment,Financial Services,200000
South Lakeland District Council,http://opendatacommunities.org/id/district-council/south-lakeland,31/02/2014,Development Implementation,Cultural Environmental Regulatory & Planning Services,http://opendatacommunities.org/def/concept/finance/sercop/objective/104,WiFi Spark Ltd,,41990,45882,650,0,Kendal Wifi - Scissor Boom Lift,Environmental Services,180000
South Lakeland District Council,http://opendatacommunities.org/id/district-council/south-lakeland,31/02/2014,Development Implementation,Cultural Environmental Regulatory & Planning Services,http://opendatacommunities.org/def/concept/finance/sercop/objective/104,WiFi Spark Ltd,,41990,45883,525,0,Site Survey for Kendal Town Centre Wi-fi,Environmental Services,180000
South Lakeland District Council,http://opendatacommunities.org/id/district-council/south-lakeland,31/02/2014,Social Enterprise Admin,Cultural Environmental Regulatory & Planning Services,http://opendatacommunities.org/def/concept/finance/sercop/objective/104,R J MOORHOUSE WELDING & FABRICATIONS,,41995,45884,1072.56,0,Tin strips and repairs to fence posts.,Sports & Playground Equipment & Maintenance,330000
South Lakeland District Council,http://opendatacommunities.org/id/district-council/south-lakeland,31/02/2014,Development Strategy,Cultural Environmental Regulatory & Planning Services,http://opendatacommunities.org/def/concept/finance/sercop/objective/104,NEWSQUEST (NORTH WEST) LTD,3102566,41995,45888,447,0,Three public notices in Westmorland,Facilities & Management Services,190000
South Lakeland District Council,http://opendatacommunities.org/id/district-council/south-lakeland,31/02/2014,Social Enterprise Admin,Highways & Transport Services,http://opendatacommunities.org/def/concept/finance/sercop/objective/107,CREDIT CALL LTD (NCR),,42004,45891,418.72,0,Credit Call Commission 2014/15,Financial Services,200000
South Lakeland District Council,http://opendatacommunities.org/id/district-council/south-lakeland,31/02/2014,Social Enterprise Admin,Highways & Transport Services,http://opendatacommunities.org/def/concept/finance/sercop/objective/107,CREDIT CALL LTD (NCR),,42004,45892,520.3,0,Credit Call Commission 2014/15,Financial Services,200000
South Lakeland District Council,http://opendatacommunities.org/id/district-council/south-lakeland,31/02/2014,Business Support Community Services,Housing Services,http://opendatacommunities.org/def/concept/finance/sercop/objective/108,Landlord,,41988,45893,500,0,Rent payment,Social Community Care Supplies & Services,410000
South Lakeland District Council,http://opendatacommunities.org/id/district-council/south-lakeland,31/02/2014,Business Support Community Services,Internal Trading Accounts,,CUMBRIA TRUCK CENTRE LTD,4298488,41995,45905,699.13,0,DPF unit,Vehicle Management,380000
South Lakeland District Council,http://opendatacommunities.org/id/district-council/south-lakeland,31/02/2014,Business Support Community Services,Internal Trading Accounts,,K S INTERNATIONAL LTD,2703321,41995,45907,311.4,0,Pedal,Vehicle Management,380000
South Lakeland District Council,http://opendatacommunities.org/id/district-council/south-lakeland,31/02/2014,Business Support Community Services,Environment Regulatory,,Great Green Systems Ltd,6632263,41995,45908,4561,0,Replaces order 24352.,Vehicle Management,380000
South Lakeland District Council,http://opendatacommunities.org/id/district-council/south-lakeland,31/02/2014,Development Implementation,Central Services,http://opendatacommunities.org/def/concept/finance/sercop/objective/102,NPS GROUP LTD,6614601,41995,45909,38333.33,0,Professional Property Services for,"Works - Construction, Repair & Maintenance",390000
South Lakeland District Council,http://opendatacommunities.org/id/district-council/south-lakeland,31/02/2014,Business Support Community Services,Internal Trading Accounts,,H WICKS (LINDAL) LTD,754590,41990,45910,1908.08,0,Paper handling - November (estimated),Environmental Services,180000
South Lakeland District Council,http://opendatacommunities.org/id/district-council/south-lakeland,31/02/2014,Social Enterprise Admin,Transport,http://opendatacommunities.org/def/concept/finance/sercop/objective/107,R G PARKINS & PARTNERS LTD,4107150,41995,45911,2902.5,0,Preparation oand evaluation of repairs,Financial Services,200000
South Lakeland District Council,http://opendatacommunities.org/id/district-council/south-lakeland,31/02/2014,Financial Services,Central Services,http://opendatacommunities.org/def/concept/finance/sercop/objective/102,GRANT THORNTON UK LLP,OC307742,41995,45913,19616,0,External Audit Service,Financial Services,200000
South Lakeland District Council,http://opendatacommunities.org/id/district-council/south-lakeland,31/02/2014,Business Support Community Services,Internal Trading Accounts,,Harry Park Tyres Ltd,8131208,41990,45915,819.2,0,Turns,Vehicle Management,380000
South Lakeland District Council,http://opendatacommunities.org/id/district-council/south-lakeland,31/02/2014,Social Enterprise Admin,Cultural Environmental Regulatory & Planning Services,http://opendatacommunities.org/def/concept/finance/sercop/objective/104,ARB CONSULTANTS LTD,6082066,41988,45922,2931.83,0,To provide tree officer services 1.10.14,Facilities & Management Services,190000
South Lakeland District Council,http://opendatacommunities.org/id/district-council/south-lakeland,31/02/2014,Debtors,Non-Service Payments,,SOUTH LAKES HOUSING RENT A/C,,41988,45924,2100.35,,No description recorded,Housing Management,250000
South Lakeland District Council,http://opendatacommunities.org/id/district-council/south-lakeland,31/02/2014,Revenues and Benefits,Central Services,http://opendatacommunities.org/def/concept/finance/sercop/objective/102,BADENOCH & CLARK,1356186,41988,45925,1133.48,0,Revs and Bens,Consultancy,150000
South Lakeland District Council,http://opendatacommunities.org/id/district-council/south-lakeland,31/02/2014,Social Enterprise Admin,Cultural Environmental Regulatory & Planning Services,http://opendatacommunities.org/def/concept/finance/sercop/objective/104,RESOLUTION DATA MANAGEMENT LTD,1910045,41990,45926,640,0,BUILDING CONTROL ANNUAL SUBSCRIPTION FOR,Financial Services,200000
South Lakeland District Council,http://opendatacommunities.org/id/district-council/south-lakeland,31/02/2014,Financial Services,Central Services,http://opendatacommunities.org/def/concept/finance/sercop/objective/102,CAPITA BUSINESS SERVICES LTD (NCR),,42004,45928,791.9,0,Internet Transactions November 2014 Inv.,Financial Services,200000
South Lakeland District Council,http://opendatacommunities.org/id/district-council/south-lakeland,31/02/2014,Financial Services,Central Services,http://opendatacommunities.org/def/concept/finance/sercop/objective/102,GREATER MANCHESTER PENSION FUND,,41990,45929,274.84,0,Qtr contribution re past pensions,Financial Services,200000
South Lakeland District Council,http://opendatacommunities.org/id/district-council/south-lakeland,31/02/2014,Business Support Community Services,SLDC as Agent,,CARLISLE CITY COUNCIL,,41990,45932,20000,0,Funding for No Second Night Out Project,Financial Services,200000
South Lakeland District Council,http://opendatacommunities.org/id/district-council/south-lakeland,31/02/2014,Debtors,Non-Service Payments,,SOUTH LAKES HOUSING RENT A/C,,41988,45933,5620.14,,No description recorded,Housing Management,250000
South Lakeland District Council,http://opendatacommunities.org/id/district-council/south-lakeland,31/02/2014,Policy & Partnerships,Cultural Environmental Regulatory & Planning Services,http://opendatacommunities.org/def/concept/finance/sercop/objective/104,ARB CONSULTANTS LTD,6082066,41990,45935,280,0,The trees on the footpath behind Valley,Financial Services,200000
South Lakeland District Council,http://opendatacommunities.org/id/district-council/south-lakeland,31/02/2014,Social Enterprise Admin,Central Services,http://opendatacommunities.org/def/concept/finance/sercop/objective/102,ADECCO UK LIMITED,593232,41995,45938,530.21,0,To supply for period,Consultancy,150000
South Lakeland District Council,http://opendatacommunities.org/id/district-council/south-lakeland,31/02/2014,Social Enterprise Admin,Cultural Environmental Regulatory & Planning Services,http://opendatacommunities.org/def/concept/finance/sercop/objective/104,Cleartrack (EvL) Ltd,3881690,41995,45941,467.08,0,Castle Rise (Stop/Go Boards required),Environmental Services,180000
South Lakeland District Council,http://opendatacommunities.org/id/district-council/south-lakeland,31/02/2014,Social Enterprise Admin,Cultural Environmental Regulatory & Planning Services,http://opendatacommunities.org/def/concept/finance/sercop/objective/104,Cleartrack (EvL) Ltd,3881690,41995,45941,262.29,0,Castle Rise (Stop/Go Boards required),Environmental Services,180000
South Lakeland District Council,http://opendatacommunities.org/id/district-council/south-lakeland,31/02/2014,Social Enterprise Admin,Cultural Environmental Regulatory & Planning Services,http://opendatacommunities.org/def/concept/finance/sercop/objective/104,AMENITY TREE CARE LTD,4141279,41995,45946,3056.32,0,All works to be carried out to the,Environmental Services,180000
South Lakeland District Council,http://opendatacommunities.org/id/district-council/south-lakeland,31/02/2014,Social Enterprise Admin,Highways & Transport Services,http://opendatacommunities.org/def/concept/finance/sercop/objective/107,AMENITY TREE CARE LTD,4141279,41995,45947,4960,0,Phase two arboriculture works at Ferry,Street & Traffic Management,350000
South Lakeland District Council,http://opendatacommunities.org/id/district-council/south-lakeland,31/02/2014,Social Enterprise Admin,Cultural Environmental Regulatory & Planning Services,http://opendatacommunities.org/def/concept/finance/sercop/objective/104,AMENITY TREE CARE LTD,4141279,41995,45947,4960,0,Phase two arboriculture works at Ferry,Environmental Services,180000
South Lakeland District Council,http://opendatacommunities.org/id/district-council/south-lakeland,31/02/2014,Technical Team,Cultural Environmental Regulatory & Planning Services,http://opendatacommunities.org/def/concept/finance/sercop/objective/104,Matchtech,2526418,41995,45949,705.6,0,TO SUPPLY  CONTRACT 16,Consultancy,150000
South Lakeland District Council,http://opendatacommunities.org/id/district-council/south-lakeland,31/02/2014,Legal Services,Central Services,http://opendatacommunities.org/def/concept/finance/sercop/objective/102,VENN GROUP RECRUITMENT SOLUTIONS,,41995,45950,494.49,0,Wages from w/k ending,Consultancy,150000
South Lakeland District Council,http://opendatacommunities.org/id/district-council/south-lakeland,31/02/2014,Debtors,Non-Service Payments,,Income & Rents Refunds/Credits BACS,,41990,45960,569.7,,No description recorded,Financial Services,200000
South Lakeland District Council,http://opendatacommunities.org/id/district-council/south-lakeland,31/02/2014,Development Implementation,Cultural Environmental Regulatory & Planning Services,http://opendatacommunities.org/def/concept/finance/sercop/objective/104,Draper Ltd,4553638,41995,45961,1600,0,Christmas Market electric cabling and,Environmental Services,180000
South Lakeland District Council,http://opendatacommunities.org/id/district-council/south-lakeland,31/02/2014,ICT Group,Central Services,http://opendatacommunities.org/def/concept/finance/sercop/objective/102,EDEN DISTRICT COUNCIL,,41995,45962,7700,0,Funding of Information Management,Consultancy,150000
South Lakeland District Council,http://opendatacommunities.org/id/district-council/south-lakeland,31/02/2014,Car Parks,Highways & Transport Services,http://opendatacommunities.org/def/concept/finance/sercop/objective/107,IAN F NICHOLSON LTD,6768166,41995,45965,580,,No description recorded,"Works - Construction, Repair & Maintenance",390000
South Lakeland District Council,http://opendatacommunities.org/id/district-council/south-lakeland,31/02/2014,Public Halls,Cultural Environmental Regulatory & Planning Services,http://opendatacommunities.org/def/concept/finance/sercop/objective/104,CASTLE ALARMS 1981 LTD,9231500,41990,45967,286,,No description recorded,"Works - Construction, Repair & Maintenance",390000
South Lakeland District Council,http://opendatacommunities.org/id/district-council/south-lakeland,31/02/2014,Offices,Central Services,http://opendatacommunities.org/def/concept/finance/sercop/objective/102,CASTLE ALARMS 1981 LTD,9231500,41990,45969,3099.04,,No description recorded,"Works - Construction, Repair & Maintenance",390000
South Lakeland District Council,http://opendatacommunities.org/id/district-council/south-lakeland,31/02/2014,Policy & Partnerships,Cultural Environmental Regulatory & Planning Services,http://opendatacommunities.org/def/concept/finance/sercop/objective/104,BREWERY ARTS CENTRE,,41995,45971,34000,0,Strategic Cultural Partnership Grant -,Financial Services,200000
South Lakeland District Council,http://opendatacommunities.org/id/district-council/south-lakeland,31/02/2014,Social Enterprise Admin,Culture and Related Serv,,NPS GROUP LTD,6614601,41995,45978,7000,0,re Ferry Nab project management and,Financial Services,200000
South Lakeland District Council,http://opendatacommunities.org/id/district-council/south-lakeland,31/02/2014,Business Support Community Services,Internal Trading Accounts,,RIBBLE FUEL OILS,,41995,45993,1291.94,0,Gas oil - Ulverston,Cleaning & Janitorial,130000
South Lakeland District Council,http://opendatacommunities.org/id/district-council/south-lakeland,31/02/2014,Democratic Services,Central Services,http://opendatacommunities.org/def/concept/finance/sercop/objective/102,IMPROVEMENT & DEVELOPMENT AGENCY,3675577,41995,45997,600,0,Councillor to attend LGA,Education,170000
South Lakeland District Council,http://opendatacommunities.org/id/district-council/south-lakeland,31/02/2014,Coronation Hall,External Trading Accounts,,CUMBRIA WASTE RECYCLING LTD,3162439,41995,46001,400.56,0,"Emptying of skips from Market Hall,",Environmental Services,180000
South Lakeland District Council,http://opendatacommunities.org/id/district-council/south-lakeland,31/02/2014,Business Support Community Services,Central Services,http://opendatacommunities.org/def/concept/finance/sercop/objective/102,ESH Construction Ltd,2529939,41995,46007,2643.41,0,Retention of capital works at Ecclerigg,Financial Services,200000
South Lakeland District Council,http://opendatacommunities.org/id/district-council/south-lakeland,31/02/2014,Payroll Deductions,Non-Service Payments,,GMB,,41990,46008,503.4,,No description recorded,Financial Services,200000
South Lakeland District Council,http://opendatacommunities.org/id/district-council/south-lakeland,31/02/2014,Payroll Deductions,Non-Service Payments,,PAYCARE,820791,41990,46009,342.16,,No description recorded,Financial Services,200000
South Lakeland District Council,http://opendatacommunities.org/id/district-council/south-lakeland,31/02/2014,Payroll Deductions,Non-Service Payments,,UNISON,,41990,46010,1945.46,,No description recorded,Financial Services,200000
South Lakeland District Council,http://opendatacommunities.org/id/district-council/south-lakeland,31/02/2014,Legal Services,Central Services,http://opendatacommunities.org/def/concept/finance/sercop/objective/102,VENN GROUP RECRUITMENT SOLUTIONS,,41995,46013,479.27,0,Wages from w/k ending,Consultancy,150000
South Lakeland District Council,http://opendatacommunities.org/id/district-council/south-lakeland,31/02/2014,Human Resources,Central Services,http://opendatacommunities.org/def/concept/finance/sercop/objective/102,CIPP,4227998,41995,46014,460,0,Holiday pay and leave,Education,170000
South Lakeland District Council,http://opendatacommunities.org/id/district-council/south-lakeland,31/02/2014,Environment and Housing,Housing,http://opendatacommunities.org/def/concept/finance/sercop/objective/108,VINCENT HOLLERAN PLUMBING & HEATING,,41995,46015,4390,0,"Kendal, LA9 4EY",Financial Services,200000
South Lakeland District Council,http://opendatacommunities.org/id/district-council/south-lakeland,31/02/2014,Legal Services,Cultural Environmental Regulatory & Planning Services,http://opendatacommunities.org/def/concept/finance/sercop/objective/104,HILL DICKINSON LLP,OC314079,41995,46017,2950,0,Fees re:  Advice carried out ,Legal Services,280000
South Lakeland District Council,http://opendatacommunities.org/id/district-council/south-lakeland,31/02/2014,Development Strategy,Housing Services,http://opendatacommunities.org/def/concept/finance/sercop/objective/108,MORGAN HUNT UK LIMITED,4349535,41995,46019,765.16,0,Housing Advice Manager,Consultancy,150000
South Lakeland District Council,http://opendatacommunities.org/id/district-council/south-lakeland,31/02/2014,Development Strategy,Housing Services,http://opendatacommunities.org/def/concept/finance/sercop/objective/108,MORGAN HUNT UK LIMITED,4349535,41995,46019,765.16,0,Housing Advice Manager,Consultancy,150000
South Lakeland District Council,http://opendatacommunities.org/id/district-council/south-lakeland,31/02/2014,Human Resources,Central Services,http://opendatacommunities.org/def/concept/finance/sercop/objective/102,OH Acquisitions Ltd,7365943,41995,46020,601.5,0,Pre employment check,Healthcare,310000
South Lakeland District Council,http://opendatacommunities.org/id/district-council/south-lakeland,31/02/2014,Policy & Partnerships,Cultural Environmental Regulatory & Planning Services,http://opendatacommunities.org/def/concept/finance/sercop/objective/104,YOUNG CUMBRIA,4631820,41995,46024,500,0,Youth participation training for members,Consultancy,150000
South Lakeland District Council,http://opendatacommunities.org/id/district-council/south-lakeland,31/02/2014,ICT Group,Central Services,http://opendatacommunities.org/def/concept/finance/sercop/objective/102,IT PROFESSIONAL SERVICES (ITPS),,41995,46025,4810.63,0,1 x VMware vCenter Server 5 Standard for,Information Communication Technology,270000
South Lakeland District Council,http://opendatacommunities.org/id/district-council/south-lakeland,31/02/2014,Social Enterprise Admin,Cultural Environmental Regulatory & Planning Services,http://opendatacommunities.org/def/concept/finance/sercop/objective/104,CAPITA SYMONDS LTD,3173410,41995,46030,2315.5,0,ARBORICULTURE SERVICES PROVIDED BY,Environmental Services,180000
South Lakeland District Council,http://opendatacommunities.org/id/district-council/south-lakeland,31/02/2014,Development Implementation,Cultural Environmental Regulatory & Planning Services,http://opendatacommunities.org/def/concept/finance/sercop/objective/104,CUMBRIA RURAL ENTERPRISE AGENCY LIMITED,2200347,41995,46032,6160,0,Business Support Claim to Quarter Ending,Arts & Leisure Services,290000
South Lakeland District Council,http://opendatacommunities.org/id/district-council/south-lakeland,31/02/2014,Car Parks,Highways & Transport Services,http://opendatacommunities.org/def/concept/finance/sercop/objective/107,NPS GROUP LTD,6614601,41995,46033,305.08,,No description recorded,"Works - Construction, Repair & Maintenance",390000
South Lakeland District Council,http://opendatacommunities.org/id/district-council/south-lakeland,31/02/2014,Cemeteries,Cultural Environmental Regulatory & Planning Services,http://opendatacommunities.org/def/concept/finance/sercop/objective/104,NPS GROUP LTD,6614601,41995,46033,274.54,,No description recorded,"Works - Construction, Repair & Maintenance",390000
South Lakeland District Council,http://opendatacommunities.org/id/district-council/south-lakeland,31/02/2014,Parks and Open Spaces,Cultural Environmental Regulatory & Planning Services,http://opendatacommunities.org/def/concept/finance/sercop/objective/104,NPS GROUP LTD,6614601,41995,46033,457.61,,No description recorded,"Works - Construction, Repair & Maintenance",390000
South Lakeland District Council,http://opendatacommunities.org/id/district-council/south-lakeland,31/02/2014,Sundry Properties,External Trading Accounts,,NPS GROUP LTD,6614601,41995,46033,610.15,,No description recorded,"Works - Construction, Repair & Maintenance",390000
South Lakeland District Council,http://opendatacommunities.org/id/district-council/south-lakeland,31/02/2014,Development Implementation,Cultural Environmental Regulatory & Planning Services,http://opendatacommunities.org/def/concept/finance/sercop/objective/104,Echo Events & Association Management,,41995,46036,2501,0,Project Management for Invest in South,Environmental Services,180000
South Lakeland District Council,http://opendatacommunities.org/id/district-council/south-lakeland,31/02/2014,Legal Services,Cultural Environmental Regulatory & Planning Services,http://opendatacommunities.org/def/concept/finance/sercop/objective/104,Health & Safety Executive,,41995,46037,9133.68,0,R -v- Jaymar fees owed to HSE.,Legal Services,280000
South Lakeland District Council,http://opendatacommunities.org/id/district-council/south-lakeland,31/02/2014,ICT Group,Central Services,http://opendatacommunities.org/def/concept/finance/sercop/objective/102,IT BUS LTD,6477501,41995,46040,4498.52,0,"SAN, Switches and Servers equipment as",Information Communication Technology,270000
South Lakeland District Council,http://opendatacommunities.org/id/district-council/south-lakeland,31/02/2014,ICT Group,Central Services,http://opendatacommunities.org/def/concept/finance/sercop/objective/102,IT BUS LTD,6477501,41995,46041,10832.48,0,"SAN, Switches and Servers equipment as",Information Communication Technology,270000
South Lakeland District Council,http://opendatacommunities.org/id/district-council/south-lakeland,31/02/2014,ICT Group,Central Services,http://opendatacommunities.org/def/concept/finance/sercop/objective/102,IT BUS LTD,6477501,41995,46041,77481.37,0,"SAN, Switches and Servers equipment as",Information Communication Technology,270000
South Lakeland District Council,http://opendatacommunities.org/id/district-council/south-lakeland,31/02/2014,Environment and Housing,Housing,http://opendatacommunities.org/def/concept/finance/sercop/objective/108,TWO CASTLES HOUSING ASSOCIATION LIMITED,IP17663R,41995,46043,50000,0,"Burland Grove, Kendal Affordable Housing",Housing Management,250000
South Lakeland District Council,http://opendatacommunities.org/id/district-council/south-lakeland,31/02/2014,Environment and Housing,Housing,http://opendatacommunities.org/def/concept/finance/sercop/objective/108,TWO CASTLES HOUSING ASSOCIATION LIMITED,IP17663R,41995,46044,112000,0,"Berners Close, Grange Affordable Housing",Housing Management,250000
South Lakeland District Council,http://opendatacommunities.org/id/district-council/south-lakeland,31/02/2014,Social Enterprise Admin,Cultural Environmental Regulatory & Planning Services,http://opendatacommunities.org/def/concept/finance/sercop/objective/104,Alex Stefanovic,,41995,46045,2437.5,0,Arbitrator's Second Award Lake,Legal Services,280000
South Lakeland District Council,http://opendatacommunities.org/id/district-council/south-lakeland,31/02/2014,Environment and Housing,Housing,http://opendatacommunities.org/def/concept/finance/sercop/objective/108,ENVIRONMENT & HOUSING GRANTS,,41995,46056,4000,0,"Wideways, Church Road, Levens, Kendal,",Financial Services,200000
South Lakeland District Council,http://opendatacommunities.org/id/district-council/south-lakeland,31/02/2014,Social Enterprise Admin,Cultural Environmental Regulatory & Planning Services,http://opendatacommunities.org/def/concept/finance/sercop/objective/104,Matchtech,2526418,41995,46057,1068.19,0,TO SUPPLY DEVELOPMENT CONTROL TEAM,Consultancy,150000
South Lakeland District Council,http://opendatacommunities.org/id/district-council/south-lakeland,31/02/2014,Social Enterprise Admin,Cultural Environmental Regulatory & Planning Services,http://opendatacommunities.org/def/concept/finance/sercop/objective/104,Ashlea Ltd,3932453,41995,46058,5135.38,0,Measured works per attached summary,Horticultural,240000
South Lakeland District Council,http://opendatacommunities.org/id/district-council/south-lakeland,31/02/2014,Printing and Graphic Design,Central Services,http://opendatacommunities.org/def/concept/finance/sercop/objective/102,CIT VENDOR FINANCE (UK) LTD (NCR),,42004,46118,1400,,No description recorded,Stationery,340000
